Body URI,Body Name,Date,Transaction Number (URN),Invoice Number,Amount,Supplier Name,Supplier ID,Expense Area,Expense Type,Expense Code,BVACOP,Proclass,Extended Description
,Council of the Isles of Scilly,15/12/2010,013-03-0199529,N/a,2254.83,LIFE CHOICE LTD,N/a,COMMUNITY SAFETY ,Equipment: General,30101,Environmental Services,,
,Council of the Isles of Scilly,16/12/2010,013-03-0199596,N/a,621,CQC FINANCE,N/a,OLDER PEOPLE OVER 65 - HOME CARE,Professional  & Other Fees: Registration Fees,37103,Adult & Community Services,,
,Council of the Isles of Scilly,09/12/2010,015-02-0198974,N/a,8,BRYHER BOAT SERVICES,19,AIRPORT - GENERAL,Non-Staff Travel Allowances: Boat Travel,23004,Other Operating Income & Expenditure,,
,Council of the Isles of Scilly,09/12/2010,015-02-0198974,N/a,38,BRYHER BOAT SERVICES,19,ADULT & COMMUNITY LEARNING - CONVERGENCE,Non-Staff Travel Allowances: Boat Travel,23004,Education,,
,Council of the Isles of Scilly,09/12/2010,015-02-0198975,N/a,247,BRYHER BOAT SERVICES,19,CONCESSIONARY FARES,Non-Staff Travel Allowances: Boat Travel,23004,"Highways, Roads & Transport",,
,Council of the Isles of Scilly,09/12/2010,015-02-0198974,N/a,443.5,BRYHER BOAT SERVICES,19,DEMOCRATIC REPRESENTATION & MANAGEMENT,Non-Staff Travel Allowances: Boat Travel,23004,Central Services,,
,Council of the Isles of Scilly,21/12/2010,007-02-0199742,N/a,572,BRYHER BOAT SERVICES,19,Sure Start - access funding,Non-Staff Travel Allowances: Boat Travel,23004,Education,,
,Council of the Isles of Scilly,21/12/2010,007-02-0199741,N/a,704,BRYHER BOAT SERVICES,19,HOME TO SCHOOL TRANSPORT,School Transport: Home to school transport - Primary,26001,Education,,
,Council of the Isles of Scilly,09/12/2010,015-02-0198976,N/a,122.13,CORNWALL  COUNCIL,25,FIRE & RESCUE OPERATIONS,Equipment: General,30101,Fire & rescue,,
,Council of the Isles of Scilly,09/12/2010,015-02-0198977,N/a,891.26,CORNWALL  COUNCIL,25,FIRE & RESCUE OPERATIONS,Equipment: Other,30103,Fire & rescue,,
,Council of the Isles of Scilly,09/12/2010,015-02-0198976,N/a,169.3,CORNWALL  COUNCIL,25,FIRE & RESCUE OPERATIONS,Clothing & Uniforms: Protective Clothing,31102,Fire & rescue,,
,Council of the Isles of Scilly,09/12/2010,015-02-0198991,N/a,1166.66,DAVID PARR ENGINEERING,61,FIRE & RESCUE OPERATIONS,Private Contractors & Other Agencies: Other,42003,Fire & rescue,,
,Council of the Isles of Scilly,09/12/2010,015-02-0198991,N/a,583.34,DAVID PARR ENGINEERING,61,AIRPORT - GENERAL,Private Contractors & Other Agencies: Other,42003,Other Operating Income & Expenditure,,
,Council of the Isles of Scilly,09/12/2010,015-02-0198996,N/a,5.25,ISLES OF SCILLY STEAMSHIP CO,103,OPEN SPACES AND BEACHES,Freight Charges: Boat Transport,25002,Cultural Services,,
,Council of the Isles of Scilly,09/12/2010,015-02-0198996,N/a,4.2,ISLES OF SCILLY STEAMSHIP CO,103,PUBLIC CONVENIENCES,Freight Charges: Boat Transport,25002,Environmental Services,,
,Council of the Isles of Scilly,09/12/2010,015-02-0198996,N/a,632.1,ISLES OF SCILLY STEAMSHIP CO,103,WASTE DISPOSAL - RECYCLING,Freight Charges: Boat Transport,25002,Environmental Services,,
,Council of the Isles of Scilly,09/12/2010,015-02-0198996,N/a,92.4,ISLES OF SCILLY STEAMSHIP CO,103,REFUSE COLLECTION - BRYHER,Freight Charges: Boat Transport,25002,Environmental Services,,
,Council of the Isles of Scilly,09/12/2010,015-02-0198996,N/a,144.9,ISLES OF SCILLY STEAMSHIP CO,103,REFUSE COLLECTION - ST AGNES,Freight Charges: Boat Transport,25002,Environmental Services,,
,Council of the Isles of Scilly,09/12/2010,015-02-0198996,N/a,32.16,ISLES OF SCILLY STEAMSHIP CO,103,FIRE & RESCUE OPERATIONS,Freight Charges: Boat Transport,25002,Fire & rescue,,
,Council of the Isles of Scilly,09/12/2010,015-02-0198996,N/a,190.03,ISLES OF SCILLY STEAMSHIP CO,103,IOS WATER SERVICES,Freight Charges: Boat Transport,25002,Other Operating Income & Expenditure,,
,Council of the Isles of Scilly,09/12/2010,015-02-0198996,N/a,11.55,ISLES OF SCILLY STEAMSHIP CO,103,IOS WATER SERVICES - BRYHER,Freight Charges: Boat Transport,25002,Other Operating Income & Expenditure,,
,Council of the Isles of Scilly,09/12/2010,015-02-0198996,N/a,23.1,ISLES OF SCILLY STEAMSHIP CO,103,IOS WATER SERVICES - DESALINATION,Freight Charges: Boat Transport,25002,Other Operating Income & Expenditure,,
,Council of the Isles of Scilly,09/12/2010,015-02-0198996,N/a,5.25,ISLES OF SCILLY STEAMSHIP CO,103,Small Plant - Other,Freight Charges: Boat Transport,25002,Other Operating Income & Expenditure,,
,Council of the Isles of Scilly,09/12/2010,015-02-0198996,N/a,76.2,ISLES OF SCILLY STEAMSHIP CO,103,OLDER PEOPLE OVER 65 - PARK HOUSE RESIDENTIAL CARE,Freight Charges: Boat Transport,25002,Adult & Community Services,,
,Council of the Isles of Scilly,09/12/2010,015-02-0198996,N/a,112.28,ISLES OF SCILLY STEAMSHIP CO,103,OFFICE - TOWN HALL,Freight Charges: Boat Transport,25002,Central Services,,
,Council of the Isles of Scilly,09/12/2010,015-02-0198996,N/a,75.33,ISLES OF SCILLY STEAMSHIP CO,103,LIBRARY SERVICE,Freight Charges: Boat Transport,25002,Cultural Services,,
,Council of the Isles of Scilly,09/12/2010,015-02-0198996,N/a,37.75,ISLES OF SCILLY STEAMSHIP CO,103,RESPONSIVE R&M,Freight Charges: Boat Transport,25002,Housing Revenue Account,,
,Council of the Isles of Scilly,09/12/2010,015-02-0198996,N/a,62.69,ISLES OF SCILLY STEAMSHIP CO,103,EMERGENCY PLANNING,Freight Charges: Boat Transport,25002,Central Services,,
,Council of the Isles of Scilly,09/12/2010,015-02-0198996,N/a,93.3,ISLES OF SCILLY STEAMSHIP CO,103,DEMOCRATIC REPRESENTATION & MANAGEMENT,Freight Charges: Boat Transport,25002,Central Services,,
,Council of the Isles of Scilly,09/12/2010,015-02-0198996,N/a,622,ISLES OF SCILLY STEAMSHIP CO,103,COMMUNITY SAFETY ,Freight Charges: Boat Transport,25002,Environmental Services,,
,Council of the Isles of Scilly,09/12/2010,015-02-0198996,N/a,5.25,ISLES OF SCILLY STEAMSHIP CO,103,CHILDRENS SERVICES - COMMISSIONING & SOCIAL WORK,Freight Charges: Boat Transport,25002,Childrens Social Care,,
,Council of the Isles of Scilly,09/12/2010,015-02-0198996,N/a,7.35,ISLES OF SCILLY STEAMSHIP CO,103,TOURISM,Freight Charges: Boat Transport,25002,Cultural Services,,
,Council of the Isles of Scilly,09/12/2010,015-02-0198996,N/a,60.88,ISLES OF SCILLY STEAMSHIP CO,103,Capital,Freight Charges: Boat Transport,25002,Capital,,
,Council of the Isles of Scilly,09/12/2010,015-02-0198996,N/a,12.23,ISLES OF SCILLY STEAMSHIP CO,103,Capital,Freight Charges: Boat Transport,25002,Capital,,
,Council of the Isles of Scilly,09/12/2010,015-02-0198996,N/a,144,ISLES OF SCILLY STEAMSHIP CO,103,Capital,Freight Charges: Boat Transport,25002,Capital,,
,Council of the Isles of Scilly,09/12/2010,015-02-0198996,N/a,4.72,ISLES OF SCILLY STEAMSHIP CO,103,OLDER PEOPLE OVER 65 - EQUIPMENT,Freight Charges: Other Transport - DLF,25003,Adult & Community Services,,
,Council of the Isles of Scilly,09/12/2010,030-02-0198999,N/a,193.8,DV PEACOCK,180,CONCESSIONARY FARES,Non-Staff Travel Allowances: Boat Travel,23004,"Highways, Roads & Transport",,
,Council of the Isles of Scilly,09/12/2010,030-02-0199000,N/a,75.1,REDACTED PERSONAL DATA,REDACTED PERSONAL DATA,ADULT & COMMUNITY LEARNING - LSC,Professional  & Other Fees: Other,37106,Education,,
,Council of the Isles of Scilly,29/12/2010,007-02-0200084,N/a,2645,REDACTED PERSONAL DATA,REDACTED PERSONAL DATA,AONB - GENERAL,Other Payments: Various,55100,Planning Services,,
,Council of the Isles of Scilly,09/12/2010,030-02-0199001,N/a,3190,R G & J A MORTON,493,PUBLIC CONVENIENCES,Private Contractors & Other Agencies: Other,42003,Environmental Services,,
,Council of the Isles of Scilly,09/12/2010,030-02-0199005,N/a,111.6,MISCO COMPUTER SUPPLIES LTD,499,DEMOCRATIC REPRESENTATION & MANAGEMENT,Printing: Computer printing,32003,Central Services,,
,Council of the Isles of Scilly,09/12/2010,030-02-0199005,N/a,60.15,MISCO COMPUTER SUPPLIES LTD,499,INTERNAL SUPPORT SERVICES - MISCELLANEOUS,Printing: Computer printing,32003,Central Services,,
,Council of the Isles of Scilly,09/12/2010,030-02-0199003,N/a,4.99,MISCO COMPUTER SUPPLIES LTD,499,WASTE DISPOSAL - INCINERATOR,Postages: Courier services,33003,Environmental Services,,
,Council of the Isles of Scilly,09/12/2010,030-02-0199005,N/a,4.99,MISCO COMPUTER SUPPLIES LTD,499,DEMOCRATIC REPRESENTATION & MANAGEMENT,Postages: Courier services,33003,Central Services,,
,Council of the Isles of Scilly,09/12/2010,030-02-0199005,N/a,5,MISCO COMPUTER SUPPLIES LTD,499,INTERNAL SUPPORT SERVICES - MISCELLANEOUS,Postages: Courier services,33003,Central Services,,
,Council of the Isles of Scilly,09/12/2010,030-02-0199003,N/a,5,MISCO COMPUTER SUPPLIES LTD,499,INTERNAL ICT SERVICES,Postages: Courier services,33003,Central Services,,
,Council of the Isles of Scilly,09/12/2010,030-02-0199002,N/a,9.99,MISCO COMPUTER SUPPLIES LTD,499,INTERNAL ICT SERVICES,Postages: Courier services,33003,Central Services,,
,Council of the Isles of Scilly,09/12/2010,030-02-0199004,N/a,9.99,MISCO COMPUTER SUPPLIES LTD,499,INTERNAL SUPPORT SERVICES - ONE STOP SHOP,Postages: Courier services,33003,Central Services,,
,Council of the Isles of Scilly,09/12/2010,030-02-0199003,N/a,392,MISCO COMPUTER SUPPLIES LTD,499,WASTE DISPOSAL - INCINERATOR,Computing: Hardware Costs,33201,Environmental Services,,
,Council of the Isles of Scilly,09/12/2010,030-02-0199002,N/a,78.42,MISCO COMPUTER SUPPLIES LTD,499,INTERNAL ICT SERVICES,Computing: Hardware Costs,33201,Central Services,,
,Council of the Isles of Scilly,09/12/2010,030-02-0199003,N/a,16.71,MISCO COMPUTER SUPPLIES LTD,499,INTERNAL ICT SERVICES,Computing: Hardware Costs,33201,Central Services,,
,Council of the Isles of Scilly,09/12/2010,030-02-0199004,N/a,80.75,MISCO COMPUTER SUPPLIES LTD,499,INTERNAL SUPPORT SERVICES - ONE STOP SHOP,Computing: Hardware Costs,33201,Central Services,,
,Council of the Isles of Scilly,09/12/2010,030-02-0199004,N/a,332.5,MISCO COMPUTER SUPPLIES LTD,499,INTERNAL SUPPORT SERVICES - ONE STOP SHOP,Computing: Hardware Costs,33201,Central Services,,
,Council of the Isles of Scilly,21/12/2010,007-02-0199786,N/a,357,ST MARTIN'S BOAT SERVICES,906,Sure Start - access funding,Non-Staff Travel Allowances: Boat Travel,23004,Education,,
,Council of the Isles of Scilly,08/12/2010,015-02-0198897,N/a,81,ST MARTIN'S BOAT SERVICES,906,ADULT & COMMUNITY LEARNING - LSC,Non-Staff Travel Allowances: Other,23005,Education,,
,Council of the Isles of Scilly,08/12/2010,013-02-0198921,N/a,-81,ST MARTIN'S BOAT SERVICES,906,ADULT & COMMUNITY LEARNING - LSC,Non-Staff Travel Allowances: Other,23005,Education,,
,Council of the Isles of Scilly,09/12/2010,030-02-0199011,N/a,2610,STRIDE TREGLOWN LTD,1013,Capital,Private Contractors & Other Agencies: Professional Services,42001,Capital,,
,Council of the Isles of Scilly,09/12/2010,030-02-0199017,N/a,1844,TRESCO & BRYHER OUTOFSCHOOL CLUB,1427,Sure Start - access funding,Grants and Subscriptions: Grant payments,37302,Education,,
,Council of the Isles of Scilly,09/12/2010,030-02-0199023,N/a,453.99,NURSEFINDERS LTD,1924,OLDER PEOPLE OVER 65 - PARK HOUSE RESIDENTIAL CARE,Private Contractors & Other Agencies: Agency Staff,42002,Adult & Community Services,,
,Council of the Isles of Scilly,09/12/2010,030-02-0199023,N/a,123.5,NURSEFINDERS LTD,1924,OLDER PEOPLE OVER 65 - PARK HOUSE RESIDENTIAL CARE,Private Contractors & Other Agencies: Agency Staff,42002,Adult & Community Services,,
,Council of the Isles of Scilly,09/12/2010,030-02-0199026,N/a,1037,ST MARTINS OUT OF SCHOOL CLUB,2168,Sure Start - access funding,Grants and Subscriptions: Grant payments,37302,Education,,
,Council of the Isles of Scilly,09/12/2010,030-02-0199031,N/a,86,TRURO & PENWITH COLLEGE,2239,ADULT & COMMUNITY LEARNING - LSC,Professional  & Other Fees: Other,37106,Education,,
,Council of the Isles of Scilly,09/12/2010,030-02-0199031,N/a,86,TRURO & PENWITH COLLEGE,2239,ADULT & COMMUNITY LEARNING - LSC,Professional  & Other Fees: Other,37106,Education,,
,Council of the Isles of Scilly,09/12/2010,030-02-0199031,N/a,86,TRURO & PENWITH COLLEGE,2239,ADULT & COMMUNITY LEARNING - LSC,Professional  & Other Fees: Other,37106,Education,,
,Council of the Isles of Scilly,09/12/2010,030-02-0199031,N/a,494,TRURO & PENWITH COLLEGE,2239,ADULT & COMMUNITY LEARNING - LSC,Professional  & Other Fees: Other,37106,Education,,
,Council of the Isles of Scilly,09/12/2010,030-02-0199033,N/a,247.54,BURDENS LTD,2446,WASTE DISPOSAL - INCINERATOR,Materials: Other materials,30303,Environmental Services,,
,Council of the Isles of Scilly,09/12/2010,030-02-0199034,N/a,56.27,BURDENS LTD,2446,IOS WATER SERVICES,Materials: Other materials,30303,Other Operating Income & Expenditure,,
,Council of the Isles of Scilly,09/12/2010,030-02-0199034,N/a,411.04,BURDENS LTD,2446,IOS WATER SERVICES,Materials: Other materials,30303,Other Operating Income & Expenditure,,
,Council of the Isles of Scilly,08/12/2010,015-02-0198902,N/a,922.64,ST AGNES OUT OF SCHOOL CLUB,2803,Sure Start - access funding,Grants and Subscriptions: Grant payments,37302,Education,,
,Council of the Isles of Scilly,08/12/2010,015-02-0198903,N/a,156,C WRIGHT,3103,RESPONSIVE R&M,R&M - Buildings: External Contractors,10101,Housing Revenue Account,,
,Council of the Isles of Scilly,08/12/2010,015-02-0198904,N/a,228,C WRIGHT,3103,RESPONSIVE R&M,R&M - Buildings: External Contractors,10101,Housing Revenue Account,,
,Council of the Isles of Scilly,08/12/2010,015-02-0198905,N/a,39.5,C WRIGHT,3103,RESPONSIVE R&M,R&M - Buildings: External Contractors,10101,Housing Revenue Account,,
,Council of the Isles of Scilly,08/12/2010,015-02-0198906,N/a,62,C WRIGHT,3103,RESPONSIVE R&M,R&M - Buildings: External Contractors,10101,Housing Revenue Account,,
,Council of the Isles of Scilly,08/12/2010,015-02-0198907,N/a,491,C WRIGHT,3103,Capital,R&M - Buildings: External Contractors,10101,Capital,,
,Council of the Isles of Scilly,21/12/2010,007-02-0199839,N/a,18.5,THE PHONE CO-OP LTD,3469,WASTE DISPOSAL - INCINERATOR,Telephones: Land Line - Line Rentals,33100,Environmental Services,,
,Council of the Isles of Scilly,09/12/2010,030-02-0199047,N/a,133.24,THE PHONE CO-OP LTD,3469,FIRE & RESCUE OPERATIONS,Telephones: Land Line - Line Rentals,33100,Fire & rescue,,
,Council of the Isles of Scilly,09/12/2010,030-02-0199047,N/a,82.45,THE PHONE CO-OP LTD,3469,AIR TRAFFIC CONTROL,Telephones: Land Line - Line Rentals,33100,Other Operating Income & Expenditure,,
,Council of the Isles of Scilly,21/12/2010,007-02-0199839,N/a,12.5,THE PHONE CO-OP LTD,3469,IOS SEWERAGE SERVICES,Telephones: Land Line - Line Rentals,33100,Other Operating Income & Expenditure,,
,Council of the Isles of Scilly,21/12/2010,007-02-0199839,N/a,13.99,THE PHONE CO-OP LTD,3469,IOS WATER SERVICES,Telephones: Land Line - Line Rentals,33100,Other Operating Income & Expenditure,,
,Council of the Isles of Scilly,21/12/2010,007-02-0199839,N/a,12.5,THE PHONE CO-OP LTD,3469,IOS WATER SERVICES - DESALINATION,Telephones: Land Line - Line Rentals,33100,Other Operating Income & Expenditure,,
,Council of the Isles of Scilly,21/12/2010,007-02-0199839,N/a,12.5,THE PHONE CO-OP LTD,3469,MOORWELL DEPOT,Telephones: Land Line - Line Rentals,33100,Other Operating Income & Expenditure,,
,Council of the Isles of Scilly,21/12/2010,007-02-0199839,N/a,13.99,THE PHONE CO-OP LTD,3469,ADULT & COMMUNITY LEARNING - GENERAL,Telephones: Land Line - Line Rentals,33100,Education,,
,Council of the Isles of Scilly,21/12/2010,007-02-0199839,N/a,12.5,THE PHONE CO-OP LTD,3469,SWIMMING POOL,Telephones: Land Line - Line Rentals,33100,Cultural Services,,
,Council of the Isles of Scilly,21/12/2010,007-02-0199839,N/a,26.49,THE PHONE CO-OP LTD,3469,LIBRARY SERVICE,Telephones: Land Line - Line Rentals,33100,Cultural Services,,
,Council of the Isles of Scilly,21/12/2010,007-02-0199839,N/a,494.94,THE PHONE CO-OP LTD,3469,INTERNAL ICT SERVICES,Telephones: Land Line - Line Rentals,33100,Central Services,,
,Council of the Isles of Scilly,21/12/2010,007-02-0199839,N/a,177.43,THE PHONE CO-OP LTD,3469,ECONOMIC DEVELOPMENT - RDA (Strategic Investment Framework Dev),Telephones: Land Line - Line Rentals,33100,Planning Services,,
,Council of the Isles of Scilly,21/12/2010,007-02-0199839,N/a,12.5,THE PHONE CO-OP LTD,3469,TOURISM,Telephones: Land Line - Line Rentals,33100,Cultural Services,,
,Council of the Isles of Scilly,21/12/2010,007-02-0199839,N/a,10.45,THE PHONE CO-OP LTD,3469,WASTE DISPOSAL - INCINERATOR,Telephones: Land Line - Calls ,33101,Environmental Services,,
,Council of the Isles of Scilly,09/12/2010,030-02-0199047,N/a,1.43,THE PHONE CO-OP LTD,3469,FIRE & RESCUE OPERATIONS,Telephones: Land Line - Calls ,33101,Fire & rescue,,
,Council of the Isles of Scilly,09/12/2010,030-02-0199047,N/a,16.93,THE PHONE CO-OP LTD,3469,AIR TRAFFIC CONTROL,Telephones: Land Line - Calls ,33101,Other Operating Income & Expenditure,,
,Council of the Isles of Scilly,21/12/2010,007-02-0199839,N/a,9.26,THE PHONE CO-OP LTD,3469,IOS WATER SERVICES,Telephones: Land Line - Calls ,33101,Other Operating Income & Expenditure,,
,Council of the Isles of Scilly,21/12/2010,007-02-0199839,N/a,1.6,THE PHONE CO-OP LTD,3469,IOS WATER SERVICES - DESALINATION,Telephones: Land Line - Calls ,33101,Other Operating Income & Expenditure,,
,Council of the Isles of Scilly,21/12/2010,007-02-0199839,N/a,0.53,THE PHONE CO-OP LTD,3469,MOORWELL DEPOT,Telephones: Land Line - Calls ,33101,Other Operating Income & Expenditure,,
,Council of the Isles of Scilly,21/12/2010,007-02-0199839,N/a,10.14,THE PHONE CO-OP LTD,3469,ADULT & COMMUNITY LEARNING - GENERAL,Telephones: Land Line - Calls ,33101,Education,,
,Council of the Isles of Scilly,21/12/2010,007-02-0199839,N/a,7.95,THE PHONE CO-OP LTD,3469,SWIMMING POOL,Telephones: Land Line - Calls ,33101,Cultural Services,,
,Council of the Isles of Scilly,21/12/2010,007-02-0199839,N/a,5.87,THE PHONE CO-OP LTD,3469,LIBRARY SERVICE,Telephones: Land Line - Calls ,33101,Cultural Services,,
,Council of the Isles of Scilly,21/12/2010,007-02-0199839,N/a,347.05,THE PHONE CO-OP LTD,3469,INTERNAL ICT SERVICES,Telephones: Land Line - Calls ,33101,Central Services,,
,Council of the Isles of Scilly,21/12/2010,007-02-0199839,N/a,17.01,THE PHONE CO-OP LTD,3469,WASTE DISPOSAL - INCINERATOR,Computing: Broadband Internet,33206,Environmental Services,,
,Council of the Isles of Scilly,09/12/2010,030-02-0199047,N/a,85.05,THE PHONE CO-OP LTD,3469,FIRE & RESCUE OPERATIONS,Computing: Broadband Internet,33206,Fire & rescue,,
,Council of the Isles of Scilly,09/12/2010,030-02-0199047,N/a,45.13,THE PHONE CO-OP LTD,3469,AIR TRAFFIC CONTROL,Computing: Broadband Internet,33206,Other Operating Income & Expenditure,,
,Council of the Isles of Scilly,21/12/2010,007-02-0199839,N/a,17.01,THE PHONE CO-OP LTD,3469,IOS WATER SERVICES,Computing: Broadband Internet,33206,Other Operating Income & Expenditure,,
,Council of the Isles of Scilly,21/12/2010,007-02-0199839,N/a,19,THE PHONE CO-OP LTD,3469,MOORWELL DEPOT,Computing: Broadband Internet,33206,Other Operating Income & Expenditure,,
,Council of the Isles of Scilly,21/12/2010,007-02-0199839,N/a,19,THE PHONE CO-OP LTD,3469,SWIMMING POOL,Computing: Broadband Internet,33206,Cultural Services,,
,Council of the Isles of Scilly,21/12/2010,007-02-0199839,N/a,17.01,THE PHONE CO-OP LTD,3469,LIBRARY SERVICE,Computing: Broadband Internet,33206,Cultural Services,,
,Council of the Isles of Scilly,21/12/2010,007-02-0199839,N/a,159.26,THE PHONE CO-OP LTD,3469,INTERNAL ICT SERVICES,Computing: Broadband Internet,33206,Central Services,,
,Council of the Isles of Scilly,21/12/2010,007-02-0199839,N/a,19,THE PHONE CO-OP LTD,3469,TOURISM,Computing: Broadband Internet,33206,Cultural Services,,
,Council of the Isles of Scilly,09/12/2010,015-02-0198945,N/a,906.76,OIL & WATER SUPPLIES LTD,3640,IOS WATER SERVICES,Materials: Other materials,30303,Other Operating Income & Expenditure,,
,Council of the Isles of Scilly,08/12/2010,015-02-0198892,N/a,229.06,REDACTED PERSONAL DATA,REDACTED PERSONAL DATA,IOS WATER SERVICES,Water Rates: Refund,53100,Other Operating Income & Expenditure,,
,Council of the Isles of Scilly,09/12/2010,015-02-0198956,N/a,1444,REDACTED PERSONAL DATA,REDACTED PERSONAL DATA,POST 16 OPPORTUNITIES,School Children and Students: Accomodation Grants,50104,Education,,
,Council of the Isles of Scilly,09/12/2010,015-02-0198960,N/a,932,DEVON RENAISSANCE,4785,COMMUNITY DEVELOPMENT - RDA - (Local Action Group Management & Admin),Professional  & Other Fees: Training Courses,37116,Planning Services,,
,Council of the Isles of Scilly,08/12/2010,015-02-0198893,N/a,573,ELIZABETH MAGILL,4824,ADULT & COMMUNITY LEARNING - LSC,Professional  & Other Fees: Other,37106,Education,,
,Council of the Isles of Scilly,08/12/2010,015-02-0198894,N/a,95.06,ELIZABETH MAGILL,4824,ADULT & COMMUNITY LEARNING - LSC,Professional  & Other Fees: Other,37106,Education,,
,Council of the Isles of Scilly,09/12/2010,015-02-0198967,N/a,2987,ISLES OF SCILLY MARITIME HERITAGE TRUST,5100,COMMUNITY DEVELOPMENT - RDA - (Local Action Group Project Grant),Other Payments: Various,55100,Planning Services,,
,Council of the Isles of Scilly,09/12/2010,015-02-0198968,N/a,1011.78,MRS G DAN,5101,COMMUNITY DEVELOPMENT - RDA - (Local Action Group Project Grant),Other Payments: Various,55100,Planning Services,,
,Council of the Isles of Scilly,09/12/2010,015-02-0198969,N/a,2426.96,SOUTH WEST GARAGE DOORS LTD,5102,AIRSIDE MAINTENANCE,Grounds Maintenance: Contractors,16001,Other Operating Income & Expenditure,,
,Council of the Isles of Scilly,09/12/2010,015-02-0198950,N/a,1074,WASTE RECYCLING GROUP LTD,4134,WASTE DISPOSAL - INCINERATOR,Professional  & Other Fees: Other,37106,Environmental Services,,
,Council of the Isles of Scilly,23/12/2010,007-02-0199978,N/a,629.24,MR SIMON REYNOLDS,3577,CARN THOMAS EDUCATION BUILDING,Fixtures & Fittings: Repairs and Maintenance,10302,Central Services,,
,Council of the Isles of Scilly,14/12/2010,007-02-0199308,N/a,673,PAUL FASSAM GEOMATICS,3580,Capital,Equipment: General,30101,Capital,,
,Council of the Isles of Scilly,13/12/2010,007-02-0199176,N/a,722,REDACTED PERSONAL DATA,REDACTED PERSONAL DATA,POST 16 OPPORTUNITIES,School Children and Students: Accomodation Grants,50104,Education,,
,Council of the Isles of Scilly,21/12/2010,007-02-0199691,N/a,100,REDACTED PERSONAL DATA,REDACTED PERSONAL DATA,POST 16 OPPORTUNITIES,School Children and Students: Travel Grants,50106,Education,,
,Council of the Isles of Scilly,14/12/2010,007-02-0199310,N/a,2250,SOUTHERN ELECTRIC CONTRACTING,3616,HIGHWAYS - STREET LIGHTING,Energy Costs: Electricity,11001,"Highways, Roads & Transport",,
,Council of the Isles of Scilly,21/12/2010,007-02-0199705,N/a,906.76,OIL & WATER SUPPLIES LTD,3640,IOS WATER SERVICES,Materials: Other materials,30303,Other Operating Income & Expenditure,,
,Council of the Isles of Scilly,13/12/2010,007-02-0199177,N/a,722,REDACTED PERSONAL DATA,REDACTED PERSONAL DATA,POST 16 OPPORTUNITIES,School Children and Students: Accomodation Grants,50104,Education,,
,Council of the Isles of Scilly,13/12/2010,007-02-0199178,N/a,722,REDACTED PERSONAL DATA,REDACTED PERSONAL DATA,POST 16 OPPORTUNITIES,School Children and Students: Accomodation Grants,50104,Education,,
,Council of the Isles of Scilly,21/12/2010,007-02-0199695,N/a,100,REDACTED PERSONAL DATA,REDACTED PERSONAL DATA,POST 16 OPPORTUNITIES,School Children and Students: Travel Grants,50106,Education,,
,Council of the Isles of Scilly,13/12/2010,007-02-0199179,N/a,1444,REDACTED PERSONAL DATA,REDACTED PERSONAL DATA,POST 16 OPPORTUNITIES,School Children and Students: Accomodation Grants,50104,Education,,
,Council of the Isles of Scilly,21/12/2010,007-02-0199707,N/a,5417,AUDIT COMMISSION,3664,CORPORATE MANAGEMENT - EXTERNAL AUDIT,Professional  & Other Fees: District Audit Fees,37101,Central Services,,
,Council of the Isles of Scilly,21/12/2010,007-02-0199707,N/a,1138,AUDIT COMMISSION,3664,CORPORATE MANAGEMENT - EXTERNAL AUDIT,Professional  & Other Fees: District Audit Fees,37101,Central Services,,
,Council of the Isles of Scilly,21/12/2010,007-02-0199707,N/a,595,AUDIT COMMISSION,3664,CORPORATE MANAGEMENT - EXTERNAL AUDIT,Professional  & Other Fees: District Audit Fees,37101,Central Services,,
,Council of the Isles of Scilly,21/12/2010,007-02-0199698,N/a,756.6,MISS KATIE  PLAYLE,3723,Sure Start - 2 year olds,Professional  & Other Fees: Other,37106,Education,,
,Council of the Isles of Scilly,14/12/2010,007-02-0199302,N/a,378.3,MISS KATIE  PLAYLE,3723,Sure Start - 2 year olds,Professional  & Other Fees: Other,37106,Education,,
,Council of the Isles of Scilly,13/12/2010,007-02-0199180,N/a,722,REDACTED PERSONAL DATA,REDACTED PERSONAL DATA,POST 16 OPPORTUNITIES,School Children and Students: Accomodation Grants,50104,Education,,
,Council of the Isles of Scilly,13/12/2010,007-02-0199181,N/a,722,REDACTED PERSONAL DATA,REDACTED PERSONAL DATA,POST 16 OPPORTUNITIES,School Children and Students: Accomodation Grants,50104,Education,,
,Council of the Isles of Scilly,21/12/2010,007-02-0199688,N/a,100,REDACTED PERSONAL DATA,REDACTED PERSONAL DATA,POST 16 OPPORTUNITIES,School Children and Students: Travel Grants,50106,Education,,
,Council of the Isles of Scilly,29/12/2010,007-02-0200063,N/a,585,LEAP MEDIA LTD,3909,AONB - GENERAL,Computing: Fees and Advice,33203,Planning Services,,
,Council of the Isles of Scilly,13/12/2010,007-02-0199182,N/a,722,REDACTED PERSONAL DATA,REDACTED PERSONAL DATA,POST 16 OPPORTUNITIES,School Children and Students: Accomodation Grants,50104,Education,,
,Council of the Isles of Scilly,13/12/2010,007-02-0199183,N/a,722,REDACTED PERSONAL DATA,REDACTED PERSONAL DATA,POST 16 OPPORTUNITIES,School Children and Students: Accomodation Grants,50104,Education,,
,Council of the Isles of Scilly,14/12/2010,007-02-0199314,N/a,500,ISLAND VIEW RESTAURANT,4088,CORPORATE MANAGEMENT - OTHER,Catering: Meetings,31001,Central Services,,
,Council of the Isles of Scilly,21/12/2010,007-02-0199710,N/a,51,VIRIDOR WASTE MANAGEMENT LTD,4096,WASTE DISPOSAL - INCINERATOR,Professional  & Other Fees: Other,37106,Environmental Services,,
,Council of the Isles of Scilly,21/12/2010,007-02-0199711,N/a,2139,VIRIDOR WASTE MANAGEMENT LTD,4096,WASTE DISPOSAL - INCINERATOR,Professional  & Other Fees: Other,37106,Environmental Services,,
,Council of the Isles of Scilly,13/12/2010,007-02-0199184,N/a,722,REDACTED PERSONAL DATA,REDACTED PERSONAL DATA,POST 16 OPPORTUNITIES,School Children and Students: Accomodation Grants,50104,Education,,
,Council of the Isles of Scilly,21/12/2010,007-02-0199701,N/a,388,TRACY SMITH,4126,Sure Start - 2 year olds,Professional  & Other Fees: Other,37106,Education,,
,Council of the Isles of Scilly,13/12/2010,007-02-0199185,N/a,1444,REDACTED PERSONAL DATA,REDACTED PERSONAL DATA,POST 16 OPPORTUNITIES,School Children and Students: Accomodation Grants,50104,Education,,
,Council of the Isles of Scilly,21/12/2010,007-02-0199685,N/a,100,REDACTED PERSONAL DATA,REDACTED PERSONAL DATA,POST 16 OPPORTUNITIES,School Children and Students: Travel Grants,50106,Education,,
,Council of the Isles of Scilly,21/12/2010,007-02-0199685,N/a,100,REDACTED PERSONAL DATA,REDACTED PERSONAL DATA,POST 16 OPPORTUNITIES,School Children and Students: Travel Grants,50106,Education,,
,Council of the Isles of Scilly,21/12/2010,007-02-0199714,N/a,4000,RED KITE ENVIRONMENT LTD,4206,AONB - GENERAL,Private Contractors & Other Agencies: Other,42003,Planning Services,,
,Council of the Isles of Scilly,13/12/2010,007-02-0199186,N/a,722,REDACTED PERSONAL DATA,REDACTED PERSONAL DATA,POST 16 OPPORTUNITIES,School Children and Students: Accomodation Grants,50104,Education,,
,Council of the Isles of Scilly,13/12/2010,007-02-0199187,N/a,722,REDACTED PERSONAL DATA,REDACTED PERSONAL DATA,POST 16 OPPORTUNITIES,School Children and Students: Accomodation Grants,50104,Education,,
,Council of the Isles of Scilly,13/12/2010,007-02-0199188,N/a,1444,REDACTED PERSONAL DATA,REDACTED PERSONAL DATA,POST 16 OPPORTUNITIES,School Children and Students: Accomodation Grants,50104,Education,,
,Council of the Isles of Scilly,21/12/2010,007-02-0199690,N/a,100,REDACTED PERSONAL DATA,REDACTED PERSONAL DATA,POST 16 OPPORTUNITIES,School Children and Students: Travel Grants,50106,Education,,
,Council of the Isles of Scilly,23/12/2010,007-02-0199984,N/a,3825,OWEN HOLLAND (ENGINEERING) LTD,4490,Capital,Vehicle Expenses: New Purchases,20801,Capital,,
,Council of the Isles of Scilly,16/12/2010,007-02-0199589,N/a,136469.84,KIER WESTERN,4495,Capital,Private Contractors & Other Agencies: Other,42003,Capital,,
,Council of the Isles of Scilly,16/12/2010,007-02-0199590,N/a,491386.42,KIER WESTERN,4495,Capital,Private Contractors & Other Agencies: Other,42003,Capital,,
,Council of the Isles of Scilly,23/12/2010,007-02-0199985,N/a,4.82,CORNWALL & IOS COMMUNITY HEALTH SERVICES,4508,AIRPORT - FIRE & RESCUE,Equipment: Maintenance,30102,Other Operating Income & Expenditure,,
,Council of the Isles of Scilly,02/12/2010,007-02-0198432,N/a,1700.4,CORNWALL & IOS COMMUNITY HEALTH SERVICES,4508,OLDER PEOPLE OVER 65 - MEALS,Catering: Meals on Wheels,31002,Adult & Community Services,,
,Council of the Isles of Scilly,02/12/2010,013-02-0198485,N/a,-1700.4,CORNWALL & IOS COMMUNITY HEALTH SERVICES,4508,OLDER PEOPLE OVER 65 - MEALS,Catering: Meals on Wheels,31002,Adult & Community Services,,
,Council of the Isles of Scilly,02/12/2010,007-02-0198486,N/a,744.9,CORNWALL & IOS COMMUNITY HEALTH SERVICES,4508,OLDER PEOPLE OVER 65 - MEALS,Catering: Meals on Wheels,31002,Adult & Community Services,,
,Council of the Isles of Scilly,23/12/2010,007-02-0199985,N/a,10.8,CORNWALL & IOS COMMUNITY HEALTH SERVICES,4508,AIRPORT - FIRE & RESCUE,Postages: Courier services,33003,Other Operating Income & Expenditure,,
,Council of the Isles of Scilly,23/12/2010,007-02-0199985,N/a,-9.72,CORNWALL & IOS COMMUNITY HEALTH SERVICES,4508,AIRPORT - FIRE & RESCUE,Postages: Courier services,33003,Other Operating Income & Expenditure,,
,Council of the Isles of Scilly,21/12/2010,007-02-0199718,N/a,493,MACE LTD,4537,Capital,Non-Staff Travel Allowances: Air Travel,23002,Capital,,
,Council of the Isles of Scilly,21/12/2010,007-02-0199719,N/a,5500,MACE LTD,4537,Capital,Private Contractors & Other Agencies: Professional Services,42001,Capital,,
,Council of the Isles of Scilly,21/12/2010,007-02-0199717,N/a,1000,MACE LTD,4537,Capital,Private Contractors & Other Agencies: Professional Services,42001,Capital,,
,Council of the Isles of Scilly,21/12/2010,007-02-0199718,N/a,5500,MACE LTD,4537,Capital,Private Contractors & Other Agencies: Professional Services,42001,Capital,,
,Council of the Isles of Scilly,21/12/2010,007-02-0199717,N/a,4500,MACE LTD,4537,SPORTS DEVELOPMENT,Inter Service Movements: Contribution to Other Departments,67001,Cultural Services,,
,Council of the Isles of Scilly,21/12/2010,007-02-0199717,N/a,3500,MACE LTD,4537,SPORTS DEVELOPMENT,Inter Service Movements: Contribution to Other Departments,67001,Cultural Services,,
,Council of the Isles of Scilly,21/12/2010,007-02-0199720,N/a,1246.03,MR I LOWE,4565,COMMUNITY DEVELOPMENT - RDA - (Local Action Group Management & Admin),Professional  & Other Fees: Other,37106,Planning Services,,
,Council of the Isles of Scilly,21/12/2010,007-02-0199721,N/a,816.15,MR I LOWE,4565,COMMUNITY DEVELOPMENT - RDA - (Local Action Group Management & Admin),Professional  & Other Fees: Other,37106,Planning Services,,
,Council of the Isles of Scilly,13/12/2010,007-02-0199189,N/a,722,REDACTED PERSONAL DATA,REDACTED PERSONAL DATA,POST 16 OPPORTUNITIES,School Children and Students: Accomodation Grants,50104,Education,,
,Council of the Isles of Scilly,13/12/2010,007-02-0199190,N/a,1444,REDACTED PERSONAL DATA,REDACTED PERSONAL DATA,POST 16 OPPORTUNITIES,School Children and Students: Accomodation Grants,50104,Education,,
,Council of the Isles of Scilly,13/12/2010,007-02-0199191,N/a,722,REDACTED PERSONAL DATA,REDACTED PERSONAL DATA,POST 16 OPPORTUNITIES,School Children and Students: Accomodation Grants,50104,Education,,
,Council of the Isles of Scilly,21/12/2010,007-02-0199686,N/a,100,REDACTED PERSONAL DATA,REDACTED PERSONAL DATA,POST 16 OPPORTUNITIES,School Children and Students: Travel Grants,50106,Education,,
,Council of the Isles of Scilly,13/12/2010,007-02-0199192,N/a,722,REDACTED PERSONAL DATA,REDACTED PERSONAL DATA,POST 16 OPPORTUNITIES,School Children and Students: Accomodation Grants,50104,Education,,
,Council of the Isles of Scilly,21/12/2010,007-02-0199696,N/a,100,REDACTED PERSONAL DATA,REDACTED PERSONAL DATA,POST 16 OPPORTUNITIES,School Children and Students: Travel Grants,50106,Education,,
,Council of the Isles of Scilly,23/12/2010,007-02-0200016,N/a,500,SCILLY FOLK FESTIVAL,4863,COMMUNITY AWARDS (s.137),Grants to Voluntary Organisations: Miscellaneous,41001,Central Services,,
,Council of the Isles of Scilly,21/12/2010,007-02-0199728,N/a,3900,POYNTON BRADBURY WYNTER COLE ARCHITECTS LTD,4865,EXTRA CARE HOUSING STRATEGY,Professional  & Other Fees: Other,37106,Adult & Community Services,,
,Council of the Isles of Scilly,23/12/2010,007-02-0199990,N/a,500,NOVATIA PLC,4868,COMMUNITY AWARDS (s.137),Grants to Voluntary Organisations: Miscellaneous,41001,Central Services,,
,Council of the Isles of Scilly,23/12/2010,013-02-0200015,N/a,-500,NOVATIA PLC,4868,COMMUNITY AWARDS (s.137),Grants to Voluntary Organisations: Miscellaneous,41001,Central Services,,
,Council of the Isles of Scilly,21/12/2010,007-02-0199729,N/a,745,NOVATIA PLC,4868,Capital,Private Contractors & Other Agencies: Professional Services,42001,Capital,,
,Council of the Isles of Scilly,29/12/2010,007-02-0200070,N/a,21766.2,SYSTEMS INTERFACE LTD,4937,Capital,Equipment: General,30101,Capital,,
,Council of the Isles of Scilly,29/12/2010,007-02-0200071,N/a,3405,SLR CONSULTING LIMITED,4939,Capital,Professional  & Other Fees: Other,37106,Capital,,
,Council of the Isles of Scilly,16/12/2010,007-02-0199570,N/a,10542.85,REDACTED PERSONAL DATA,4955,OLDER PEOPLE OVER 65 - APPOINTEESHIP,Private Contractors & Other Agencies: Residential Care,42005,Adult & Community Services,,
,Council of the Isles of Scilly,13/12/2010,007-02-0199193,N/a,722,REDACTED PERSONAL DATA,REDACTED PERSONAL DATA,POST 16 OPPORTUNITIES,School Children and Students: Accomodation Grants,50104,Education,,
,Council of the Isles of Scilly,21/12/2010,007-02-0199687,N/a,100,REDACTED PERSONAL DATA,REDACTED PERSONAL DATA,POST 16 OPPORTUNITIES,School Children and Students: Travel Grants,50106,Education,,
,Council of the Isles of Scilly,13/12/2010,007-02-0199194,N/a,722,REDACTED PERSONAL DATA,REDACTED PERSONAL DATA,POST 16 OPPORTUNITIES,School Children and Students: Accomodation Grants,50104,Education,,
,Council of the Isles of Scilly,13/12/2010,007-02-0199244,N/a,1444,REDACTED PERSONAL DATA,REDACTED PERSONAL DATA,POST 16 OPPORTUNITIES,School Children and Students: Accomodation Grants,50104,Education,,
,Council of the Isles of Scilly,29/12/2010,007-02-0200072,N/a,11000,DEPARTMENT FOR EDUCATION,5002,SURE START - CHILDRENS INFO SERVICE,Grants Inside AEF: DCSF,80428,Education,,
,Council of the Isles of Scilly,29/12/2010,007-02-0200072,N/a,4728.78,DEPARTMENT FOR EDUCATION,5002,SURE START - CHILDRENS INFO SERVICE,Grants Inside AEF: DCSF,80428,Education,,
,Council of the Isles of Scilly,02/12/2010,007-02-0198437,N/a,93,MR M THOMSON,5046,ADULT & COMMUNITY LEARNING - LSC,Professional  & Other Fees: Other,37106,Education,,
,Council of the Isles of Scilly,02/12/2010,007-02-0198437,N/a,500,HOTEL PENZANCE,4189,ADULT & COMMUNITY LEARNING - GENERAL,Private Contractors & Other Agencies: Professional Services,42001,Education,,
,Council of the Isles of Scilly,16/12/2010,007-02-0199571,N/a,500,MR M THOMSON,5046,ADULT & COMMUNITY LEARNING - GENERAL,Private Contractors & Other Agencies: Other,42003,Education,,
,Council of the Isles of Scilly,23/12/2010,007-02-0199997,N/a,2000,NATIONAL ASSOCIATION OF FAMILY INFORMATION SERVICES,5111,SURE START - GENERAL,Professional  & Other Fees: Other,37106,Education,,
,Council of the Isles of Scilly,23/12/2010,013-02-0200017,N/a,-2000,NATIONAL ASSOCIATION OF FAMILY INFORMATION SERVICES,5111,SURE START - GENERAL,Professional  & Other Fees: Other,37106,Education,,
,Council of the Isles of Scilly,23/12/2010,007-02-0200018,N/a,2000,NATIONAL ASSOCIATION OF FAMILY INFORMATION SERVICES,5111,SURE START - GENERAL,Professional  & Other Fees: Other,37106,Education,,
,Council of the Isles of Scilly,23/12/2010,007-02-0199998,N/a,424,DR SARAH PERRY,5112,CHILDRENS SERVICES - COMMISSIONING & SOCIAL WORK (TaMHS),Non-Staff Travel Allowances: Other,23005,Childrens Social Care,,
,Council of the Isles of Scilly,23/12/2010,007-02-0199999,N/a,424,DR SARAH PERRY,5112,CHILDRENS SERVICES - COMMISSIONING & SOCIAL WORK (TaMHS),Non-Staff Travel Allowances: Other,23005,Childrens Social Care,,
,Council of the Isles of Scilly,22/12/2010,007-02-0199845,N/a,65028,BLUE MACHINERY LTD,5116,Capital,Equipment: General,30101,Capital,,
,Council of the Isles of Scilly,21/12/2010,007-02-0199737,N/a,712.13,B&Q PLC,13,Capital,Fixtures & Fittings: Purchase,10301,Capital,,
,Council of the Isles of Scilly,21/12/2010,007-02-0199738,N/a,1904.21,B&Q PLC,13,Capital,Fixtures & Fittings: Purchase,10301,Capital,,
,Council of the Isles of Scilly,21/12/2010,007-02-0199740,N/a,133,BRYHER BOAT SERVICES,19,ADULT & COMMUNITY LEARNING - LSC,Non-Staff Travel Allowances: Boat Travel,23004,Education,,
,Council of the Isles of Scilly,21/12/2010,007-02-0199740,N/a,48,BRYHER BOAT SERVICES,19,ADULT & COMMUNITY LEARNING - CONVERGENCE,Non-Staff Travel Allowances: Boat Travel,23004,Education,,
,Council of the Isles of Scilly,29/12/2010,007-02-0200080,N/a,511.5,BRYHER BOAT SERVICES,19,DEMOCRATIC REPRESENTATION & MANAGEMENT,Non-Staff Travel Allowances: Boat Travel,23004,Central Services,,
,Council of the Isles of Scilly,22/12/2010,007-02-0199850,N/a,0.5,BRYHER BOAT SERVICES,19,Sure Start - access funding,Non-Staff Travel Allowances: Boat Travel,23004,Education,,
,Council of the Isles of Scilly,21/12/2010,007-02-0199743,N/a,335.38,CORNWALL  COUNCIL,25,FIRE & RESCUE OPERATIONS,Vehicle Expenses: Transport R&M,20301,Fire & rescue,,
,Council of the Isles of Scilly,21/12/2010,007-02-0199744,N/a,116.04,CORNWALL  COUNCIL,25,FIRE & RESCUE OPERATIONS,Vehicle Expenses: Transport R&M,20301,Fire & rescue,,
,Council of the Isles of Scilly,21/12/2010,007-02-0199744,N/a,256,CORNWALL  COUNCIL,25,FIRE & RESCUE OPERATIONS,Equipment: Other,30103,Fire & rescue,,
,Council of the Isles of Scilly,21/12/2010,007-02-0199744,N/a,34.42,CORNWALL  COUNCIL,25,FIRE & RESCUE OPERATIONS,Clothing & Uniforms: Protective Clothing,31102,Fire & rescue,,
,Council of the Isles of Scilly,21/12/2010,007-02-0199749,N/a,1166.66,DAVID PARR ENGINEERING,61,FIRE & RESCUE OPERATIONS,Private Contractors & Other Agencies: Other,42003,Fire & rescue,,
,Council of the Isles of Scilly,21/12/2010,007-02-0199749,N/a,583.34,DAVID PARR ENGINEERING,61,AIRPORT - GENERAL,Private Contractors & Other Agencies: Other,42003,Other Operating Income & Expenditure,,
,Council of the Isles of Scilly,14/12/2010,007-02-0199331,N/a,1002,SWEET & MAXWELL LIMITED,77,DEVELOPMENT CONTROL,General Subscriptions: Publications etc,35001,Planning Services,,
,Council of the Isles of Scilly,29/12/2010,007-02-0200082,N/a,570,VALUATION OFFICE AGENCY,82,ECONOMIC DEVELOPMENT - RDA (Strategic Investment Framework Dev),Private Contractors & Other Agencies: Professional Services,42001,Planning Services,,
,Council of the Isles of Scilly,29/12/2010,007-02-0200083,N/a,145.9,REDACTED PERSONAL DATA,REDACTED PERSONAL DATA,DEMOCRATIC REPRESENTATION & MANAGEMENT,Non-Staff Travel Allowances: Boat Travel,23004,Central Services,,
,Council of the Isles of Scilly,21/12/2010,007-02-0199759,N/a,148.1,REDACTED PERSONAL DATA,REDACTED PERSONAL DATA,Sure Start - parent & toddler sessions,Non-Staff Travel Allowances: Boat Travel,23004,Education,,
,Council of the Isles of Scilly,21/12/2010,007-02-0199758,N/a,543.8,REDACTED PERSONAL DATA,REDACTED PERSONAL DATA,Sure Start - access funding,Non-Staff Travel Allowances: Boat Travel,23004,Education,,
,Council of the Isles of Scilly,29/12/2010,007-02-0200083,N/a,44,REDACTED PERSONAL DATA,REDACTED PERSONAL DATA,AONB - GENERAL,Non-Staff Travel Allowances: Boat Travel,23004,Planning Services,,
,Council of the Isles of Scilly,21/12/2010,007-02-0199760,N/a,175.9,REDACTED PERSONAL DATA,REDACTED PERSONAL DATA,HOME TO SCHOOL TRANSPORT,School Transport: Home to school transport - Secondary,26002,Education,,
,Council of the Isles of Scilly,30/12/2010,007-02-0200171,N/a,0.5,REDACTED PERSONAL DATA,REDACTED PERSONAL DATA,AONB - GENERAL,Other Payments: Various,55100,Planning Services,,
,Council of the Isles of Scilly,21/12/2010,007-02-0199761,N/a,58.45,SIBLEY'S FUEL & MARINE SERVICE,194,OLDER PEOPLE OVER 65 - PARK HOUSE RESIDENTIAL CARE,Energy Costs: Gas,11101,Adult & Community Services,,
,Council of the Isles of Scilly,21/12/2010,007-02-0199761,N/a,6308.12,SIBLEY'S FUEL & MARINE SERVICE,194,WASTE DISPOSAL - INCINERATOR,Energy Costs: Oil,11102,Environmental Services,,
,Council of the Isles of Scilly,21/12/2010,007-02-0199763,N/a,1078.2,SIBLEY'S FUEL & MARINE SERVICE,194,AIRPORT - GENERAL,Energy Costs: Oil,11102,Other Operating Income & Expenditure,,
,Council of the Isles of Scilly,21/12/2010,007-02-0199761,N/a,914.47,SIBLEY'S FUEL & MARINE SERVICE,194,OLDER PEOPLE OVER 65 - PARK HOUSE RESIDENTIAL CARE,Energy Costs: Oil,11102,Adult & Community Services,,
,Council of the Isles of Scilly,21/12/2010,007-02-0199761,N/a,392.8,SIBLEY'S FUEL & MARINE SERVICE,194,OFFICE - TOWN HALL,Energy Costs: Oil,11102,Central Services,,
,Council of the Isles of Scilly,21/12/2010,007-02-0199761,N/a,457.24,SIBLEY'S FUEL & MARINE SERVICE,194,RESPONSIVE R&M,Energy Costs: Oil,11102,Housing Revenue Account,,
,Council of the Isles of Scilly,21/12/2010,007-02-0199765,N/a,13.01,SIBLEY'S FUEL & MARINE SERVICE,194,FIRE & RESCUE OPERATIONS,Vehicle Expenses:  Fuel,20401,Fire & rescue,,
,Council of the Isles of Scilly,21/12/2010,007-02-0199761,N/a,7.71,SIBLEY'S FUEL & MARINE SERVICE,194,HIGHWAYS  - ROUTINE REPAIRS,Vehicle Expenses:  Fuel,20401,"Highways, Roads & Transport",,
,Council of the Isles of Scilly,21/12/2010,007-02-0199762,N/a,44.87,SIBLEY'S FUEL & MARINE SERVICE,194,AIRPORT - GENERAL,Vehicle Expenses:  Fuel,20401,Other Operating Income & Expenditure,,
,Council of the Isles of Scilly,21/12/2010,007-02-0199761,N/a,75.32,SIBLEY'S FUEL & MARINE SERVICE,194,Vehicle 01 C902 SCY  - MF30D Tractor,Vehicle Expenses:  Fuel,20401,Other Operating Income & Expenditure,,
,Council of the Isles of Scilly,21/12/2010,007-02-0199761,N/a,75.32,SIBLEY'S FUEL & MARINE SERVICE,194,Vehicle 21 Y129 KAF - Peugeot Light Van,Vehicle Expenses:  Fuel,20401,Other Operating Income & Expenditure,,
,Council of the Isles of Scilly,21/12/2010,007-02-0199761,N/a,105.44,SIBLEY'S FUEL & MARINE SERVICE,194,Vehicle 36 P181 FTT  - LDV Pick Up Double Cab Lorry,Vehicle Expenses:  Fuel,20401,Other Operating Income & Expenditure,,
,Council of the Isles of Scilly,21/12/2010,007-02-0199761,N/a,75.32,SIBLEY'S FUEL & MARINE SERVICE,194,Vehicle 37 WL54 JMY - Ford Ranger Thunder,Vehicle Expenses:  Fuel,20401,Other Operating Income & Expenditure,,
,Council of the Isles of Scilly,21/12/2010,007-02-0199761,N/a,113.32,SIBLEY'S FUEL & MARINE SERVICE,194,Vehicle 5W M136 ACV - Landrover Defender,Vehicle Expenses:  Fuel,20401,Other Operating Income & Expenditure,,
,Council of the Isles of Scilly,21/12/2010,007-02-0199761,N/a,753.17,SIBLEY'S FUEL & MARINE SERVICE,194,Vehicle 24 HX51 HLZ - Ford Iveco Dustcart Lorry,Vehicle Expenses:  Fuel,20401,Other Operating Income & Expenditure,,
,Council of the Isles of Scilly,21/12/2010,007-02-0199761,N/a,150.64,SIBLEY'S FUEL & MARINE SERVICE,194,Vehicle 26 X654 UFM - Leyland DAF Dustcart (Small),Vehicle Expenses:  Fuel,20401,Other Operating Income & Expenditure,,
,Council of the Isles of Scilly,21/12/2010,007-02-0199761,N/a,75.32,SIBLEY'S FUEL & MARINE SERVICE,194,Vehicle 31 N290 DYC - Renault Van,Vehicle Expenses:  Fuel,20401,Other Operating Income & Expenditure,,
,Council of the Isles of Scilly,21/12/2010,007-02-0199761,N/a,120.51,SIBLEY'S FUEL & MARINE SERVICE,194,Vehicle 25 Y871 TCD - Johnson Compact Road Sweeper,Vehicle Expenses:  Fuel,20401,Other Operating Income & Expenditure,,
,Council of the Isles of Scilly,21/12/2010,007-02-0199761,N/a,75.32,SIBLEY'S FUEL & MARINE SERVICE,194,Vehicle 38 WK55 ZWG - Mitsubishi Pick Up,Vehicle Expenses:  Fuel,20401,Other Operating Income & Expenditure,,
,Council of the Isles of Scilly,21/12/2010,007-02-0199761,N/a,50.3,SIBLEY'S FUEL & MARINE SERVICE,194,WASTE DISPOSAL - INCINERATOR,Vehicle Expenses:  Lubricants,20501,Environmental Services,,
,Council of the Isles of Scilly,21/12/2010,007-02-0199761,N/a,99.75,SIBLEY'S FUEL & MARINE SERVICE,194,Vehicle 04 F463 XRL - MF50HX Rear Digger Tractor,Vehicle Expenses:  Lubricants,20501,Other Operating Income & Expenditure,,
,Council of the Isles of Scilly,21/12/2010,007-02-0199761,N/a,99.75,SIBLEY'S FUEL & MARINE SERVICE,194,Vehicle 05 WK02 ZGJ - New Holland Excavator,Vehicle Expenses:  Lubricants,20501,Other Operating Income & Expenditure,,
,Council of the Isles of Scilly,21/12/2010,007-02-0199761,N/a,99.75,SIBLEY'S FUEL & MARINE SERVICE,194,Vehicle 20 Case 1088 - Porclain Swing Shovel Excavator,Vehicle Expenses:  Lubricants,20501,Other Operating Income & Expenditure,,
,Council of the Isles of Scilly,21/12/2010,007-02-0199761,N/a,148.2,SIBLEY'S FUEL & MARINE SERVICE,194,Vehicle 20 Case 1088 - Porclain Swing Shovel Excavator,Vehicle Expenses:  Lubricants,20501,Other Operating Income & Expenditure,,
,Council of the Isles of Scilly,21/12/2010,007-02-0199761,N/a,99.75,SIBLEY'S FUEL & MARINE SERVICE,194,Vehicle 25 Y871 TCD - Johnson Compact Road Sweeper,Vehicle Expenses:  Lubricants,20501,Other Operating Income & Expenditure,,
,Council of the Isles of Scilly,21/12/2010,007-02-0199761,N/a,3.25,SIBLEY'S FUEL & MARINE SERVICE,194,Small Plant - Other,Vehicle Expenses:  Lubricants,20501,Other Operating Income & Expenditure,,
,Council of the Isles of Scilly,21/12/2010,007-02-0199761,N/a,46.74,SIBLEY'S FUEL & MARINE SERVICE,194,IOS WATER SERVICES - BRYHER,Materials: Other materials,30303,Other Operating Income & Expenditure,,
,Council of the Isles of Scilly,21/12/2010,007-02-0199761,N/a,80.87,SIBLEY'S FUEL & MARINE SERVICE,194,MOORWELL DEPOT,Materials: Other materials,30303,Other Operating Income & Expenditure,,
,Council of the Isles of Scilly,21/12/2010,007-02-0199761,N/a,3.61,SIBLEY'S FUEL & MARINE SERVICE,194,Vehicle 04 F463 XRL - MF50HX Rear Digger Tractor,Materials: Other materials,30303,Other Operating Income & Expenditure,,
,Council of the Isles of Scilly,21/12/2010,007-02-0199761,N/a,3.6,SIBLEY'S FUEL & MARINE SERVICE,194,Vehicle 05 WK02 ZGJ - New Holland Excavator,Materials: Other materials,30303,Other Operating Income & Expenditure,,
,Council of the Isles of Scilly,21/12/2010,007-02-0199761,N/a,3.61,SIBLEY'S FUEL & MARINE SERVICE,194,Vehicle 20 Case 1088 - Porclain Swing Shovel Excavator,Materials: Other materials,30303,Other Operating Income & Expenditure,,
,Council of the Isles of Scilly,21/12/2010,007-02-0199761,N/a,3.61,SIBLEY'S FUEL & MARINE SERVICE,194,Vehicle 25 Y871 TCD - Johnson Compact Road Sweeper,Materials: Other materials,30303,Other Operating Income & Expenditure,,
,Council of the Isles of Scilly,21/12/2010,007-02-0199761,N/a,2.98,SIBLEY'S FUEL & MARINE SERVICE,194,OFFICE - TOWN HALL,Materials: Other materials,30303,Central Services,,
,Council of the Isles of Scilly,21/12/2010,007-02-0199764,N/a,45.23,SIBLEY'S FUEL & MARINE SERVICE,194,FIRE & RESCUE OPERATIONS,Laundry: Other,31201,Fire & rescue,,
,Council of the Isles of Scilly,21/12/2010,007-02-0199767,N/a,837.1,SCILLONIA BUILDING SUPPLIES,202,AIRSIDE MAINTENANCE,Fixtures & Fittings: Repairs and Maintenance,10302,Other Operating Income & Expenditure,,
,Council of the Isles of Scilly,21/12/2010,007-02-0199767,N/a,212.11,SCILLONIA BUILDING SUPPLIES,202,AIRPORT - GENERAL,Fixtures & Fittings: Repairs and Maintenance,10302,Other Operating Income & Expenditure,,
,Council of the Isles of Scilly,21/12/2010,007-02-0199766,N/a,21,SCILLONIA BUILDING SUPPLIES,202,WASTE DISPOSAL - INCINERATOR,Materials: Other materials,30303,Environmental Services,,
,Council of the Isles of Scilly,21/12/2010,007-02-0199766,N/a,36.48,SCILLONIA BUILDING SUPPLIES,202,HIGHWAYS  - ROUTINE REPAIRS,Materials: Other materials,30303,"Highways, Roads & Transport",,
,Council of the Isles of Scilly,21/12/2010,007-02-0199766,N/a,20,SCILLONIA BUILDING SUPPLIES,202,MOORWELL DEPOT,Materials: Other materials,30303,Other Operating Income & Expenditure,,
,Council of the Isles of Scilly,21/12/2010,007-02-0199766,N/a,70.51,SCILLONIA BUILDING SUPPLIES,202,OLDER PEOPLE OVER 65 - EQUIPMENT,Materials: Other materials,30303,Adult & Community Services,,
,Council of the Isles of Scilly,21/12/2010,007-02-0199766,N/a,24.91,SCILLONIA BUILDING SUPPLIES,202,OFFICE - TOWN HALL,Materials: Other materials,30303,Central Services,,
,Council of the Isles of Scilly,21/12/2010,007-02-0199766,N/a,44.9,SCILLONIA BUILDING SUPPLIES,202,CARN THOMAS EDUCATION BUILDING,Materials: Other materials,30303,Central Services,,
,Council of the Isles of Scilly,21/12/2010,007-02-0199766,N/a,606.26,SCILLONIA BUILDING SUPPLIES,202,RESPONSIVE R&M,Materials: Other materials,30303,Housing Revenue Account,,
,Council of the Isles of Scilly,21/12/2010,007-02-0199766,N/a,129.35,SCILLONIA BUILDING SUPPLIES,202,Capital,Materials: Other materials,30303,Capital,,
,Council of the Isles of Scilly,21/12/2010,007-02-0199770,N/a,8.8,VODAFONE LTD,239,WASTE DISPOSAL - RECYCLING,Telephones: Mobile Calls and Rental,33103,Environmental Services,,
,Council of the Isles of Scilly,21/12/2010,007-02-0199770,N/a,42.57,VODAFONE LTD,239,FIRE & RESCUE OPERATIONS,Telephones: Mobile Calls and Rental,33103,Fire & rescue,,
,Council of the Isles of Scilly,21/12/2010,007-02-0199770,N/a,35.9,VODAFONE LTD,239,AIRPORT - GENERAL,Telephones: Mobile Calls and Rental,33103,Other Operating Income & Expenditure,,
,Council of the Isles of Scilly,21/12/2010,007-02-0199770,N/a,9.49,VODAFONE LTD,239,IOS SEWERAGE SERVICES,Telephones: Mobile Calls and Rental,33103,Other Operating Income & Expenditure,,
,Council of the Isles of Scilly,21/12/2010,007-02-0199770,N/a,39.59,VODAFONE LTD,239,IOS WATER SERVICES,Telephones: Mobile Calls and Rental,33103,Other Operating Income & Expenditure,,
,Council of the Isles of Scilly,21/12/2010,007-02-0199770,N/a,15.3,VODAFONE LTD,239,MOORWELL DEPOT,Telephones: Mobile Calls and Rental,33103,Other Operating Income & Expenditure,,
,Council of the Isles of Scilly,21/12/2010,007-02-0199770,N/a,33.8,VODAFONE LTD,239,ADULT SOCIAL CARE STRATEGY,Telephones: Mobile Calls and Rental,33103,Adult & Community Services,,
,Council of the Isles of Scilly,21/12/2010,007-02-0199770,N/a,9.34,VODAFONE LTD,239,ADULTS UNDER 65 MENTAL HEALTH NEEDS - OTHER SERVICES (OPERATIONAL),Telephones: Mobile Calls and Rental,33103,Adult & Community Services,,
,Council of the Isles of Scilly,21/12/2010,007-02-0199770,N/a,40.55,VODAFONE LTD,239,OTHER ADULT SERVICES - OTHER ADULT SERVICES,Telephones: Mobile Calls and Rental,33103,Adult & Community Services,,
,Council of the Isles of Scilly,21/12/2010,007-02-0199770,N/a,81.99,VODAFONE LTD,239,OFFICE - TOWN HALL,Telephones: Mobile Calls and Rental,33103,Central Services,,
,Council of the Isles of Scilly,21/12/2010,007-02-0199770,N/a,34.9,VODAFONE LTD,239,CHILDRENS SERVICES - COMMISSIONING & SOCIAL WORK,Telephones: Mobile Calls and Rental,33103,Education,,
,Council of the Isles of Scilly,21/12/2010,007-02-0199770,N/a,8.8,VODAFONE LTD,239,HANDYPERSON SCHEME,Telephones: Mobile Calls and Rental,33103,Housing Services,,
,Council of the Isles of Scilly,21/12/2010,007-02-0199770,N/a,26.4,VODAFONE LTD,239,EMERGENCY PLANNING,Telephones: Mobile Calls and Rental,33103,Central Services,,
,Council of the Isles of Scilly,21/12/2010,007-02-0199770,N/a,64.09,VODAFONE LTD,239,INTERNAL ICT SERVICES,Telephones: Mobile Calls and Rental,33103,Central Services,,
,Council of the Isles of Scilly,21/12/2010,007-02-0199770,N/a,60.96,VODAFONE LTD,239,STRATEGIC MANAGEMENT OF CHILDRENS SERVICES,Telephones: Mobile Calls and Rental,33103,Education,,
,Council of the Isles of Scilly,21/12/2010,007-02-0199770,N/a,23.57,VODAFONE LTD,239,YOUTH SERVICES,Telephones: Mobile Calls and Rental,33103,Education,,
,Council of the Isles of Scilly,21/12/2010,007-02-0199770,N/a,119.09,VODAFONE LTD,239,Sure Start - Parenting Support ,Telephones: Mobile Calls and Rental,33103,Education,,
,Council of the Isles of Scilly,21/12/2010,007-02-0199770,N/a,52.7,VODAFONE LTD,239,CHILDRENS SERVICES - COMMISSIONING & SOCIAL WORK,Telephones: Mobile Calls and Rental,33103,Childrens Social Care,,
,Council of the Isles of Scilly,21/12/2010,007-02-0199770,N/a,26.4,VODAFONE LTD,239,FAMILY SUPPORT SERVICES - OTHER INCL DIRECT PAYMENTS,Telephones: Mobile Calls and Rental,33103,Childrens Social Care,,
,Council of the Isles of Scilly,21/12/2010,007-02-0199770,N/a,59.98,VODAFONE LTD,239,PLANNING POLICY,Telephones: Mobile Calls and Rental,33103,Planning Services,,
,Council of the Isles of Scilly,21/12/2010,007-02-0199770,N/a,25.93,VODAFONE LTD,239,ENVIRONMENTAL INITIATIVES - CLIMATE CHANGE ,Telephones: Mobile Calls and Rental,33103,Planning Services,,
,Council of the Isles of Scilly,21/12/2010,007-02-0199770,N/a,11.08,VODAFONE LTD,239,ECONOMIC DEVELOPMENT - RDA (Strategic Investment Framework Dev),Telephones: Mobile Calls and Rental,33103,Planning Services,,
,Council of the Isles of Scilly,21/12/2010,007-02-0199770,N/a,94.07,VODAFONE LTD,239,ECONOMIC DEVELOPMENT,Telephones: Mobile Calls and Rental,33103,Planning Services,,
,Council of the Isles of Scilly,21/12/2010,007-02-0199770,N/a,35.96,VODAFONE LTD,239,SEA FISHERIES,Telephones: Mobile Calls and Rental,33103,Environmental Services,,
,Council of the Isles of Scilly,21/12/2010,007-02-0199770,N/a,12.77,VODAFONE LTD,239,OTHER ADULT SERVICES - OTHER ADULT SERVICES,Computing: Broadband Internet,33206,Adult & Community Services,,
,Council of the Isles of Scilly,29/12/2010,007-02-0200088,N/a,350,DUCHY OF CORNWALL,286,IOS WATER SERVICES,Rents: Rental Payments,12001,Other Operating Income & Expenditure,,
,Council of the Isles of Scilly,29/12/2010,007-02-0200089,N/a,1625,DUCHY OF CORNWALL,286,MOORWELL DEPOT,Rents: Rental Payments,12001,Other Operating Income & Expenditure,,
,Council of the Isles of Scilly,29/12/2010,007-02-0200090,N/a,75,DUCHY OF CORNWALL,286,MOORWELL DEPOT,Rents: Rental Payments,12001,Other Operating Income & Expenditure,,
,Council of the Isles of Scilly,29/12/2010,007-02-0200091,N/a,1592,DUCHY OF CORNWALL,286,OTHER COUNCIL PROPERTY (GENERAL FUND),Rents: Rental Payments,12001,Housing Services,,
,Council of the Isles of Scilly,13/12/2010,007-02-0199195,N/a,722,REDACTED PERSONAL DATA,REDACTED PERSONAL DATA,POST 16 OPPORTUNITIES,School Children and Students: Accomodation Grants,50104,Education,,
,Council of the Isles of Scilly,14/12/2010,007-02-0199342,N/a,93,P C GREEN,669,RESPONSIVE R&M,R&M - Buildings: External Contractors,10101,Housing Revenue Account,,
,Council of the Isles of Scilly,21/12/2010,007-02-0199779,N/a,3624,P C GREEN,669,Capital,R&M - Buildings: External Contractors,10101,Capital,,
,Council of the Isles of Scilly,14/12/2010,007-02-0199364,N/a,58.5,ISLES OF SCILLY TRAVEL,762,OFFICE - TOWN HALL,Non-Staff Travel Allowances: Air Travel,23002,Central Services,,
,Council of the Isles of Scilly,14/12/2010,007-02-0199364,N/a,58.5,ISLES OF SCILLY TRAVEL,762,OFFICE - WESLEYAN CHAPEL,Non-Staff Travel Allowances: Air Travel,23002,Central Services,,
,Council of the Isles of Scilly,14/12/2010,007-02-0199362,N/a,134,ISLES OF SCILLY TRAVEL,762,ADULT & COMMUNITY LEARNING - GENERAL,Non-Staff Travel Allowances: Air Travel,23002,Education,,
,Council of the Isles of Scilly,14/12/2010,007-02-0199357,N/a,134,ISLES OF SCILLY TRAVEL,762,ADULT & COMMUNITY LEARNING - GENERAL,Non-Staff Travel Allowances: Air Travel,23002,Education,,
,Council of the Isles of Scilly,14/12/2010,007-02-0199382,N/a,126,ISLES OF SCILLY TRAVEL,762,EMERGENCY PLANNING,Non-Staff Travel Allowances: Air Travel,23002,Central Services,,
,Council of the Isles of Scilly,14/12/2010,007-02-0199383,N/a,572.8,ISLES OF SCILLY TRAVEL,762,EMERGENCY PLANNING,Non-Staff Travel Allowances: Air Travel,23002,Central Services,,
,Council of the Isles of Scilly,14/12/2010,007-02-0199384,N/a,214.8,ISLES OF SCILLY TRAVEL,762,EMERGENCY PLANNING,Non-Staff Travel Allowances: Air Travel,23002,Central Services,,
,Council of the Isles of Scilly,14/12/2010,007-02-0199356,N/a,504,ISLES OF SCILLY TRAVEL,762,STRATEGIC MANAGEMENT OF CHILDRENS SERVICES,Non-Staff Travel Allowances: Air Travel,23002,Education,,
,Council of the Isles of Scilly,14/12/2010,007-02-0199349,N/a,268,ISLES OF SCILLY TRAVEL,762,STRATEGIC MANAGEMENT OF CHILDRENS SERVICES,Non-Staff Travel Allowances: Air Travel,23002,Education,,
,Council of the Isles of Scilly,14/12/2010,007-02-0199351,N/a,287,ISLES OF SCILLY TRAVEL,762,YOUTH OPPORTUNITY FUND,Non-Staff Travel Allowances: Air Travel,23002,Education,,
,Council of the Isles of Scilly,14/12/2010,007-02-0199352,N/a,77.7,ISLES OF SCILLY TRAVEL,762,YOUTH OPPORTUNITY FUND,Non-Staff Travel Allowances: Air Travel,23002,Education,,
,Council of the Isles of Scilly,14/12/2010,007-02-0199355,N/a,126,ISLES OF SCILLY TRAVEL,762,Sure Start - Training for childcare workers ,Non-Staff Travel Allowances: Air Travel,23002,Education,,
,Council of the Isles of Scilly,14/12/2010,007-02-0199346,N/a,100,ISLES OF SCILLY TRAVEL,762,Sure Start - Playbuilder (DCSF),Non-Staff Travel Allowances: Air Travel,23002,Education,,
,Council of the Isles of Scilly,14/12/2010,007-02-0199353,N/a,155.4,ISLES OF SCILLY TRAVEL,762,Sure Start - Playbuilder (DCSF),Non-Staff Travel Allowances: Air Travel,23002,Education,,
,Council of the Isles of Scilly,21/12/2010,007-02-0199782,N/a,77.73,ISLES OF SCILLY TRAVEL,762,CHILDRENS SERVICES - COMMISSIONING & SOCIAL WORK,Non-Staff Travel Allowances: Air Travel,23002,Childrens Social Care,,
,Council of the Isles of Scilly,14/12/2010,007-02-0199370,N/a,78,ISLES OF SCILLY TRAVEL,762,GAMBLING/ALCOHOL LICENSING,Non-Staff Travel Allowances: Air Travel,23002,Environmental Services,,
,Council of the Isles of Scilly,14/12/2010,007-02-0199363,N/a,117,ISLES OF SCILLY TRAVEL,762,BUILDING CONTROL,Non-Staff Travel Allowances: Air Travel,23002,Planning Services,,
,Council of the Isles of Scilly,14/12/2010,007-02-0199365,N/a,127,ISLES OF SCILLY TRAVEL,762,BUILDING CONTROL,Non-Staff Travel Allowances: Air Travel,23002,Planning Services,,
,Council of the Isles of Scilly,14/12/2010,007-02-0199366,N/a,65,ISLES OF SCILLY TRAVEL,762,BUILDING CONTROL,Non-Staff Travel Allowances: Air Travel,23002,Planning Services,,
,Council of the Isles of Scilly,14/12/2010,007-02-0199380,N/a,234,ISLES OF SCILLY TRAVEL,762,AONB - GENERAL,Non-Staff Travel Allowances: Air Travel,23002,Planning Services,,
,Council of the Isles of Scilly,14/12/2010,007-02-0199358,N/a,134,ISLES OF SCILLY TRAVEL,762,COMMUNITY DEVELOPMENT - RDA - (Local Action Group Management & Admin),Non-Staff Travel Allowances: Air Travel,23002,Planning Services,,
,Council of the Isles of Scilly,14/12/2010,007-02-0199359,N/a,134,ISLES OF SCILLY TRAVEL,762,COMMUNITY DEVELOPMENT - RDA - (Local Action Group Management & Admin),Non-Staff Travel Allowances: Air Travel,23002,Planning Services,,
,Council of the Isles of Scilly,14/12/2010,007-02-0199361,N/a,208,ISLES OF SCILLY TRAVEL,762,COMMUNITY DEVELOPMENT - RDA - (Local Action Group Management & Admin),Non-Staff Travel Allowances: Air Travel,23002,Planning Services,,
,Council of the Isles of Scilly,29/12/2010,007-02-0200098,N/a,126,ISLES OF SCILLY TRAVEL,762,COMMUNITY DEVELOPMENT - RDA - (Local Action Group Management & Admin),Non-Staff Travel Allowances: Air Travel,23002,Planning Services,,
,Council of the Isles of Scilly,29/12/2010,007-02-0200095,N/a,208.6,ISLES OF SCILLY TRAVEL,762,COMMUNITY DEVELOPMENT - RDA - (Local Action Group Management & Admin),Non-Staff Travel Allowances: Air Travel,23002,Planning Services,,
,Council of the Isles of Scilly,29/12/2010,007-02-0200096,N/a,1742,ISLES OF SCILLY TRAVEL,762,ECONOMIC DEVELOPMENT - RDA (Strategic Investment Framework Dev),Non-Staff Travel Allowances: Air Travel,23002,Planning Services,,
,Council of the Isles of Scilly,29/12/2010,007-02-0200099,N/a,268,ISLES OF SCILLY TRAVEL,762,ECONOMIC DEVELOPMENT - RDA (Strategic Investment Framework Dev),Non-Staff Travel Allowances: Air Travel,23002,Planning Services,,
,Council of the Isles of Scilly,29/12/2010,007-02-0200097,N/a,144.6,ISLES OF SCILLY TRAVEL,762,ECONOMIC DEVELOPMENT,Non-Staff Travel Allowances: Air Travel,23002,Planning Services,,
,Council of the Isles of Scilly,14/12/2010,007-02-0199381,N/a,78,ISLES OF SCILLY TRAVEL,762,TOURISM,Non-Staff Travel Allowances: Air Travel,23002,Cultural Services,,
,Council of the Isles of Scilly,14/12/2010,007-02-0199345,N/a,208.5,ISLES OF SCILLY TRAVEL,762,YOUTH SERVICES,Non-Staff Travel Allowances: Other,23005,Education,,
,Council of the Isles of Scilly,21/12/2010,007-02-0199780,N/a,1665.83,ISLES OF SCILLY TRAVEL,762,PUBLIC TRANSPORT - OFF-ISLAND LAUNCH,Launch Subsidy: ,27001,"Highways, Roads & Transport",,
,Council of the Isles of Scilly,21/12/2010,007-02-0199783,N/a,1031.5,ISLES OF SCILLY STEAMSHIP CO,847,TOURISM,Rents: Rental Payments,12001,Cultural Services,,
,Council of the Isles of Scilly,21/12/2010,007-02-0199790,N/a,76,ST MARTIN'S BOAT SERVICES,906,PUBLIC CONVENIENCES,Non-Staff Travel Allowances: Boat Travel,23004,Environmental Services,,
,Council of the Isles of Scilly,14/12/2010,007-02-0199388,N/a,81,ST MARTIN'S BOAT SERVICES,906,ADULT & COMMUNITY LEARNING - LSC,Non-Staff Travel Allowances: Boat Travel,23004,Education,,
,Council of the Isles of Scilly,29/12/2010,007-02-0200104,N/a,165,ST MARTIN'S BOAT SERVICES,906,ADULT & COMMUNITY LEARNING - LSC,Non-Staff Travel Allowances: Boat Travel,23004,Education,,
,Council of the Isles of Scilly,29/12/2010,007-02-0200104,N/a,10,ST MARTIN'S BOAT SERVICES,906,ADULT & COMMUNITY LEARNING - CONVERGENCE,Non-Staff Travel Allowances: Boat Travel,23004,Education,,
,Council of the Isles of Scilly,21/12/2010,007-02-0199788,N/a,352,ST MARTIN'S BOAT SERVICES,906,CONCESSIONARY FARES,Non-Staff Travel Allowances: Boat Travel,23004,"Highways, Roads & Transport",,
,Council of the Isles of Scilly,14/12/2010,007-02-0199387,N/a,192,ST MARTIN'S BOAT SERVICES,906,OTHER COUNCIL PROPERTY (GENERAL FUND),Non-Staff Travel Allowances: Boat Travel,23004,Housing Services,,
,Council of the Isles of Scilly,29/12/2010,007-02-0200100,N/a,265.5,ST MARTIN'S BOAT SERVICES,906,DEMOCRATIC REPRESENTATION & MANAGEMENT,Non-Staff Travel Allowances: Boat Travel,23004,Central Services,,
,Council of the Isles of Scilly,29/12/2010,007-02-0200100,N/a,61.5,ST MARTIN'S BOAT SERVICES,906,DEMOCRATIC REPRESENTATION & MANAGEMENT,Non-Staff Travel Allowances: Boat Travel,23004,Central Services,,
,Council of the Isles of Scilly,29/12/2010,007-02-0200101,N/a,10,ST MARTIN'S BOAT SERVICES,906,DEMOCRATIC REPRESENTATION & MANAGEMENT,Non-Staff Travel Allowances: Boat Travel,23004,Central Services,,
,Council of the Isles of Scilly,29/12/2010,007-02-0200102,N/a,25,ST MARTIN'S BOAT SERVICES,906,CORPORATE MANAGEMENT - OTHER,Non-Staff Travel Allowances: Boat Travel,23004,Central Services,,
,Council of the Isles of Scilly,29/12/2010,007-02-0200103,N/a,703,ST MARTIN'S BOAT SERVICES,906,SPECIAL EDUCATIONAL SUPPORT,Non-Staff Travel Allowances: Boat Travel,23004,Education,,
,Council of the Isles of Scilly,21/12/2010,007-02-0199784,N/a,224.5,ST MARTIN'S BOAT SERVICES,906,Sure Start - access funding,Non-Staff Travel Allowances: Boat Travel,23004,Education,,
,Council of the Isles of Scilly,21/12/2010,007-02-0199791,N/a,711.5,ST MARTIN'S BOAT SERVICES,906,CHILDRENS SERVICES - SHORT BREAKS,Non-Staff Travel Allowances: Boat Travel,23004,Childrens Social Care,,
,Council of the Isles of Scilly,21/12/2010,007-02-0199792,N/a,380,ST MARTIN'S BOAT SERVICES,906,CHILDRENS SERVICES - SHORT BREAKS,Non-Staff Travel Allowances: Boat Travel,23004,Childrens Social Care,,
,Council of the Isles of Scilly,21/12/2010,007-02-0199791,N/a,312,ST MARTIN'S BOAT SERVICES,906,CHILDRENS SERVICES - DCATCH GRANT,Non-Staff Travel Allowances: Boat Travel,23004,Childrens Social Care,,
,Council of the Isles of Scilly,21/12/2010,007-02-0199792,N/a,136.5,ST MARTIN'S BOAT SERVICES,906,FAMILY SUPPORT SERVICES - OTHER INCL DIRECT PAYMENTS,Non-Staff Travel Allowances: Boat Travel,23004,Childrens Social Care,,
,Council of the Isles of Scilly,21/12/2010,007-02-0199789,N/a,57,ST MARTIN'S BOAT SERVICES,906,AONB - GENERAL,Non-Staff Travel Allowances: Boat Travel,23004,Planning Services,,
,Council of the Isles of Scilly,21/12/2010,007-02-0199787,N/a,315,ST MARTIN'S BOAT SERVICES,906,HOME TO SCHOOL TRANSPORT,School Transport: Home to school transport - Secondary,26002,Education,,
,Council of the Isles of Scilly,21/12/2010,007-02-0199785,N/a,315,ST MARTIN'S BOAT SERVICES,906,HOME TO SCHOOL TRANSPORT,School Transport: Home to school transport - Secondary,26002,Education,,
,Council of the Isles of Scilly,21/12/2010,007-02-0199794,N/a,42.8,CD ELECTRICAL SERVICES,1007,RESPONSIVE R&M,R&M - Buildings: External Contractors,10101,Housing Revenue Account,,
,Council of the Isles of Scilly,21/12/2010,007-02-0199795,N/a,298.35,CD ELECTRICAL SERVICES,1007,RESPONSIVE R&M,R&M - Buildings: External Contractors,10101,Housing Revenue Account,,
,Council of the Isles of Scilly,29/12/2010,007-02-0200105,N/a,740.39,CD ELECTRICAL SERVICES,1007,OLDER PEOPLE OVER 65 - PARK HOUSE RESIDENTIAL CARE,Fixtures & Fittings: Repairs and Maintenance,10302,Adult & Community Services,,
,Council of the Isles of Scilly,29/12/2010,007-02-0200106,N/a,59.67,CD ELECTRICAL SERVICES,1007,PUBLIC CONVENIENCES,Materials: Other materials,30303,Environmental Services,,
,Council of the Isles of Scilly,29/12/2010,007-02-0200106,N/a,50,CD ELECTRICAL SERVICES,1007,PUBLIC CONVENIENCES,Private Contractors & Other Agencies: Other,42003,Environmental Services,,
,Council of the Isles of Scilly,14/12/2010,007-02-0199392,N/a,132.75,STRIDE TREGLOWN LTD,1013,OFFICE - WESLEYAN CHAPEL,Professional  & Other Fees: Other,37106,Central Services,,
,Council of the Isles of Scilly,21/12/2010,007-02-0199797,N/a,147.5,STRIDE TREGLOWN LTD,1013,Sure Start - Playbuilder (DCSF),Professional  & Other Fees: Other,37106,Education,,
,Council of the Isles of Scilly,14/12/2010,007-02-0199391,N/a,1295,STRIDE TREGLOWN LTD,1013,Capital,Private Contractors & Other Agencies: Professional Services,42001,Capital,,
,Council of the Isles of Scilly,29/12/2010,007-02-0200163,N/a,3641.4,PFS (HELSTON) LTD,1117,IOS SEWERAGE SERVICES,Equipment: General,30101,Other Operating Income & Expenditure,,
,Council of the Isles of Scilly,29/12/2010,007-02-0200164,N/a,784,PFS (HELSTON) LTD,1117,IOS WATER SERVICES,Equipment: Maintenance,30102,Other Operating Income & Expenditure,,
,Council of the Isles of Scilly,29/12/2010,007-02-0200160,N/a,3039.86,PFS (HELSTON) LTD,1117,IOS WATER SERVICES,Equipment: Maintenance,30102,Other Operating Income & Expenditure,,
,Council of the Isles of Scilly,29/12/2010,007-02-0200161,N/a,40.5,PFS (HELSTON) LTD,1117,IOS WATER SERVICES - DESALINATION,Equipment: Maintenance,30102,Other Operating Income & Expenditure,,
,Council of the Isles of Scilly,29/12/2010,007-02-0200162,N/a,577.44,PFS (HELSTON) LTD,1117,IOS WATER SERVICES,Materials: Other materials,30303,Other Operating Income & Expenditure,,
,Council of the Isles of Scilly,13/12/2010,007-02-0199196,N/a,722,REDACTED PERSONAL DATA,REDACTED PERSONAL DATA,POST 16 OPPORTUNITIES,School Children and Students: Accomodation Grants,50104,Education,,
,Council of the Isles of Scilly,23/12/2010,007-02-0200005,N/a,500,ST MARY'S XMAS LIGHTS,1535,DEMOCRATIC REPRESENTATION & MANAGEMENT,Grants to Voluntary Organisations: Miscellaneous,41001,Central Services,,
,Council of the Isles of Scilly,21/12/2010,007-02-0199803,N/a,372,MR C POTTERTON,1570,ADULT & COMMUNITY LEARNING - LSC,Professional  & Other Fees: Other,37106,Education,,
,Council of the Isles of Scilly,14/12/2010,007-02-0199340,N/a,496,MR C POTTERTON,1570,REFUSE COLLECTION - BRYHER,Private Contractors & Other Agencies: Other,42003,Environmental Services,,
,Council of the Isles of Scilly,14/12/2010,007-02-0199341,N/a,852,MR C POTTERTON,1570,IOS WATER SERVICES - BRYHER,Private Contractors & Other Agencies: Other,42003,Other Operating Income & Expenditure,,
,Council of the Isles of Scilly,13/12/2010,007-02-0199197,N/a,722,REDACTED PERSONAL DATA,REDACTED PERSONAL DATA,POST 16 OPPORTUNITIES,School Children and Students: Accomodation Grants,50104,Education,,
,Council of the Isles of Scilly,21/12/2010,007-02-0199689,N/a,100,REDACTED PERSONAL DATA,REDACTED PERSONAL DATA,POST 16 OPPORTUNITIES,School Children and Students: Travel Grants,50106,Education,,
,Council of the Isles of Scilly,21/12/2010,007-02-0199809,N/a,457.14,NURSEFINDERS LTD,1924,OLDER PEOPLE OVER 65 - PARK HOUSE RESIDENTIAL CARE,Private Contractors & Other Agencies: Agency Staff,42002,Adult & Community Services,,
,Council of the Isles of Scilly,21/12/2010,007-02-0199810,N/a,123.5,NURSEFINDERS LTD,1924,OLDER PEOPLE OVER 65 - PARK HOUSE RESIDENTIAL CARE,Private Contractors & Other Agencies: Agency Staff,42002,Adult & Community Services,,
,Council of the Isles of Scilly,21/12/2010,007-02-0199811,N/a,457.14,NURSEFINDERS LTD,1924,OLDER PEOPLE OVER 65 - PARK HOUSE RESIDENTIAL CARE,Private Contractors & Other Agencies: Agency Staff,42002,Adult & Community Services,,
,Council of the Isles of Scilly,21/12/2010,007-02-0199812,N/a,123.5,NURSEFINDERS LTD,1924,OLDER PEOPLE OVER 65 - PARK HOUSE RESIDENTIAL CARE,Private Contractors & Other Agencies: Agency Staff,42002,Adult & Community Services,,
,Council of the Isles of Scilly,21/12/2010,007-02-0199813,N/a,120,REDACTED PERSONAL DATA,REDACTED PERSONAL DATA,EXTENDED SCHOOLS GRANT,Grants and Subscriptions: Grant payments,37302,Education,,
,Council of the Isles of Scilly,13/12/2010,007-02-0199198,N/a,722,REDACTED PERSONAL DATA,REDACTED PERSONAL DATA,POST 16 OPPORTUNITIES,School Children and Students: Accomodation Grants,50104,Education,,
,Council of the Isles of Scilly,13/12/2010,007-02-0199205,N/a,722,REDACTED PERSONAL DATA,REDACTED PERSONAL DATA,POST 16 OPPORTUNITIES,School Children and Students: Accomodation Grants,50104,Education,,
,Council of the Isles of Scilly,29/12/2010,007-02-0200118,N/a,1150,FIVE ISLANDS SCHOOL,2170,SPECIAL EDUCATIONAL SUPPORT,Schools: Other Grant Payment,54004,Education,,
,Council of the Isles of Scilly,29/12/2010,007-02-0200118,N/a,45725,FIVE ISLANDS SCHOOL,2170,STRATEGIC MANAGEMENT - TDA (Training & Development Agency),Schools: Other Grant Payment,54004,Education,,
,Council of the Isles of Scilly,21/12/2010,007-02-0199815,N/a,890,GENDALL DESIGN LTD,2174,TOURISM BROCHURE,Printing: Publicity,32001,Other Operating Income & Expenditure,,
,Council of the Isles of Scilly,21/12/2010,007-02-0199816,N/a,19257.5,GENDALL DESIGN LTD,2174,TOURISM BROCHURE,Printing: Publicity,32001,Other Operating Income & Expenditure,,
,Council of the Isles of Scilly,21/12/2010,007-02-0199817,N/a,619.7,GENDALL DESIGN LTD,2174,TOURISM BROCHURE,Printing: Publicity,32001,Other Operating Income & Expenditure,,
,Council of the Isles of Scilly,21/12/2010,007-02-0199817,N/a,-122,GENDALL DESIGN LTD,2174,TOURISM BROCHURE,Printing: Publicity,32001,Other Operating Income & Expenditure,,
,Council of the Isles of Scilly,13/12/2010,007-02-0199199,N/a,722,REDACTED PERSONAL DATA,REDACTED PERSONAL DATA,POST 16 OPPORTUNITIES,School Children and Students: Accomodation Grants,50104,Education,,
,Council of the Isles of Scilly,21/12/2010,007-02-0199697,N/a,100,REDACTED PERSONAL DATA,REDACTED PERSONAL DATA,POST 16 OPPORTUNITIES,School Children and Students: Travel Grants,50106,Education,,
,Council of the Isles of Scilly,21/12/2010,013-02-0199851,N/a,-100,REDACTED PERSONAL DATA,REDACTED PERSONAL DATA,POST 16 OPPORTUNITIES,School Children and Students: Travel Grants,50106,Education,,
,Council of the Isles of Scilly,21/12/2010,007-02-0199821,N/a,55,TRURO & PENWITH COLLEGE,2239,EXTENDED SCHOOLS GRANT,Premises Casual Hire: Room Hire,18001,Education,,
,Council of the Isles of Scilly,29/12/2010,007-02-0200119,N/a,550,TRURO & PENWITH COLLEGE,2239,ADULT & COMMUNITY LEARNING - LSC,Professional  & Other Fees: Other,37106,Education,,
,Council of the Isles of Scilly,13/12/2010,007-02-0199200,N/a,1444,REDACTED PERSONAL DATA,REDACTED PERSONAL DATA,POST 16 OPPORTUNITIES,School Children and Students: Accomodation Grants,50104,Education,,
,Council of the Isles of Scilly,22/12/2010,007-02-0199852,N/a,100,REDACTED PERSONAL DATA,REDACTED PERSONAL DATA,POST 16 OPPORTUNITIES,School Children and Students: Travel Grants,50106,Education,,
,Council of the Isles of Scilly,23/12/2010,007-02-0200009,N/a,10175,ALES OF SCILLY,2391,COMMUNITY DEVELOPMENT - RDA - (Local Action Group Project Grant),Other Payments: Various,55100,Planning Services,,
,Council of the Isles of Scilly,14/12/2010,007-02-0199399,N/a,2064.1,THE SAILING CENTRE IOS LTD,2411,ADULT & COMMUNITY LEARNING - CONVERGENCE,Professional  & Other Fees: Other,37106,Education,,
,Council of the Isles of Scilly,21/12/2010,007-02-0199823,N/a,520,THE SAILING CENTRE IOS LTD,2411,SPORTS DEVELOPMENT - SCILLY UNLIMITED,Private Contractors & Other Agencies: Professional Services,42001,Cultural Services,,
,Council of the Isles of Scilly,13/12/2010,007-02-0199201,N/a,722,REDACTED PERSONAL DATA,REDACTED PERSONAL DATA,POST 16 OPPORTUNITIES,School Children and Students: Accomodation Grants,50104,Education,,
,Council of the Isles of Scilly,13/12/2010,007-02-0199202,N/a,722,REDACTED PERSONAL DATA,REDACTED PERSONAL DATA,POST 16 OPPORTUNITIES,School Children and Students: Accomodation Grants,50104,Education,,
,Council of the Isles of Scilly,13/12/2010,007-02-0199203,N/a,722,REDACTED PERSONAL DATA,REDACTED PERSONAL DATA,POST 16 OPPORTUNITIES,School Children and Students: Accomodation Grants,50104,Education,,
,Council of the Isles of Scilly,21/12/2010,007-02-0199693,N/a,100,REDACTED PERSONAL DATA,REDACTED PERSONAL DATA,POST 16 OPPORTUNITIES,School Children and Students: Travel Grants,50106,Education,,
,Council of the Isles of Scilly,23/12/2010,007-02-0200012,N/a,3120,C WRIGHT,3103,Capital,R&M - Buildings: External Contractors,10101,Capital,,
,Council of the Isles of Scilly,14/12/2010,007-02-0199407,N/a,722,REDACTED PERSONAL DATA,REDACTED PERSONAL DATA,POST 16 OPPORTUNITIES,School Children and Students: Accomodation Grants,50104,Education,,
,Council of the Isles of Scilly,13/12/2010,007-02-0199245,N/a,722,REDACTED PERSONAL DATA,REDACTED PERSONAL DATA,POST 16 OPPORTUNITIES,School Children and Students: Accomodation Grants,50104,Education,,
,Council of the Isles of Scilly,13/12/2010,010-02-0199246,N/a,-722,REDACTED PERSONAL DATA,REDACTED PERSONAL DATA,POST 16 OPPORTUNITIES,School Children and Students: Accomodation Grants,50104,Education,,
,Council of the Isles of Scilly,21/12/2010,007-02-0199692,N/a,100,REDACTED PERSONAL DATA,REDACTED PERSONAL DATA,POST 16 OPPORTUNITIES,School Children and Students: Travel Grants,50106,Education,,
,Council of the Isles of Scilly,21/12/2010,007-02-0199837,N/a,60,ECOLAB LTD,3183,RESPONSIVE R&M,Cleaning & Domestic Supplies: Pest control,15005,Housing Revenue Account,,
,Council of the Isles of Scilly,14/12/2010,007-02-0199408,N/a,600,ECOLAB LTD,3183,RODENT & PEST CONTROL,Private Contractors & Other Agencies: Other,42003,Environmental Services,,
,Council of the Isles of Scilly,13/12/2010,007-02-0199204,N/a,1444,REDACTED PERSONAL DATA,REDACTED PERSONAL DATA,POST 16 OPPORTUNITIES,School Children and Students: Accomodation Grants,50104,Education,,
,Council of the Isles of Scilly,21/12/2010,007-02-0199694,N/a,100,REDACTED PERSONAL DATA,REDACTED PERSONAL DATA,POST 16 OPPORTUNITIES,School Children and Students: Travel Grants,50106,Education,,
,Council of the Isles of Scilly,29/12/2010,007-02-0200128,N/a,746.9,MR T D HOWLETT,1188,Sure Start - support for 3 year olds,Professional  & Other Fees: Other,37106,Education,,
,Council of the Isles of Scilly,21/12/2010,007-02-0199699,N/a,261.91,MR T D HOWLETT,1188,Sure Start - 2 year olds,Professional  & Other Fees: Other,37106,Education,,
,Council of the Isles of Scilly,02/12/2010,007-02-0198434,N/a,1500,ST MARY'S GIG CLUB,4559,YOUTH OPPORTUNITY FUND,Grants and Subscriptions: Grant payments,37302,Education,,
